bitfinex/quotes_ETHUSD_20241124
["timestamp","ask_amount","ask_price","bid_price","bid_amount"]
[1732445780164,0.70140489,3369.1,3368.2,0.7617]
[1732445780529,0.05140489,3369.1,3368.8,3.0]
[1732445780863,6.5,3369.9,3369.3,3.0]
[1732445781072,7.15,3369.9,3368.3,0.0296855]
[1732445781357,0.05140489,3369.8,3369.3,3.0]
[1732445781559,0.05140489,3369.8,3368.3,0.3254855]
[1732445781747,0.05140489,3369.8,3369.3,3.0]
[1732445781955,6.5,3370.4,3369.3,3.0]
[1732445782258,0.65,3370.3,3368.3,0.32548185]
[1732445782471,7.20173972,3370.3,3369.3,3.0]
[1732445782627,6.55173972,3370.3,3369.3,3.0]
[1732445783321,7.05,3370.2,3369.3,3.0]
[1732445783526,7.05,3370.2,3368.3,0.32548184]
[1732445783746,0.76208673,3370.1,3369.3,3.0]
[1732445783945,0.76208673,3370.1,3369.0,1.0977]
[1732445784153,0.76208673,3370.1,3369.4,3.0]
[1732445784356,0.72620867,3370.0,3369.0,0.2958]
[1732445784535,0.72620867,3370.0,3369.4,3.0]
[1732445784857,0.05030381,3369.9,3369.0,0.2958]
[1732445785158,0.05030381,3369.9,3369.4,3.0]
[1732445785368,6.5,3370.7,3369.4,3.0]
[1732445785573,0.55,3370.6,3369.4,3.0]
[1732445785776,0.60030381,3370.6,3369.9,3.0]
[1732445785931,0.05030381,3370.6,3369.9,3.0]
[1732445786267,0.65503038,3370.5,3369.9,3.0]
[1732445786451,0.65503038,3370.5,3368.9,0.51307425]
[1732445786649,0.05040324,3370.4,3369.9,3.0]
[1732445786844,6.5,3370.9,3369.9,3.0]
[1732445787044,0.70040608,3370.8,3368.9,0.02967613]
[1732445787248,0.70040608,3370.8,3369.9,3.0]
[1732445787632,0.55,3370.7,3368.9,0.02967613]
[1732445787862,0.55,3370.5,3369.3,0.8019]
[1732445788062,0.55,3370.5,3369.9,3.0]
[1732445788567,0.55,3370.3,3369.9,3.0]
[1732445788866,0.55,3370.5,3369.9,3.0]
[1732445789063,0.55,3370.1,3369.3,0.8019]
[1732445789228,0.55,3370.1,3369.9,3.0]
[1732445789432,0.60040608,3370.0,3369.9,3.0]
[1732445789632,0.77504061,3370.6,3370.5,7.62959392]
[1732445790676,6.5,3371.0,3370.5,7.62959392]
[1732445791370,3.11,3372.6,3369.4,0.8019]
[1732445791371,6.81,3371.3,3369.4,0.8019]
[1732445791543,6.5,3371.3,3370.3,3.0]
[1732445791741,6.5,3371.3,3369.7,0.02967062]
[1732445792081,0.65,3371.2,3370.3,0.8019]
[1732445792381,0.65,3371.2,3370.4,3.0]
[1732445792535,6.5,3372.0,3370.8,3.0]
[1732445792732,6.5,3372.0,3370.3,0.8019]
[1732445792927,0.65,3371.9,3370.8,3.0]
[1732445793174,0.65,3371.9,3370.3,0.8019]
[1732445793375,0.65,3371.9,3370.8,3.0]
[1732445793678,6.5,3372.2,3370.3,0.8019]
[1732445793866,6.5,3372.2,3371.3,3.0]
[1732445794069,6.5,3372.2,3370.4,0.32546581]
[1732445794272,6.5,3372.2,3371.3,3.0]
[1732445794431,0.65,3372.1,3371.3,3.0]
[1732445794629,0.65,3372.1,3370.4,0.32546404]
[1732445794630,6.5,3372.4,3371.7,3.0]
[1732445795064,6.5,3372.4,3370.9,0.8019]
[1732445795277,0.65,3372.3,3371.7,3.0]
[1732445795465,0.65,3372.3,3370.9,1.28902167]
[1732445795665,6.5,3372.5,3370.9,1.28902167]
[1732445796053,6.5,3372.5,3371.7,3.0]
[1732445796257,6.5,3372.5,3369.7,0.8019]
[1732445796489,6.5,3372.3,3370.7,0.8019]
[1732445796981,0.55,3372.2,3371.4,3.0]
[1732445797340,0.55,3372.0,3371.4,3.0]
[1732445797540,0.55,3372.0,3370.7,0.8019]
[1732445797779,0.55,3372.2,3371.4,3.0]
[1732445797939,0.04940444,3371.9,3371.4,3.0]
[1732445798144,0.65,3372.2,3371.4,3.0]
[1732445798341,0.04940444,3371.8,3371.4,3.0]
[1732445798580,6.5,3372.2,3371.4,3.0]
[1732445798789,0.04940444,3371.7,3370.7,0.8019]
[1732445798941,6.5,3372.2,3371.4,3.0]
[1732445799144,0.04940444,3371.6,3371.4,3.0]
[1732445799346,0.65,3372.1,3370.7,0.8019]
[1732445799347,0.55,3372.0,3370.7,0.8019]
[1732445799541,0.04940444,3371.5,3371.4,3.0]
[1732445799785,0.55,3372.0,3370.7,0.8019]
[1732445799966,0.04940444,3371.5,3371.4,3.0]
[1732445800174,0.55,3372.0,3370.7,0.8019]
[1732445800479,0.04940444,3371.9,3371.4,3.0]
[1732445800682,0.04940444,3371.9,3370.7,0.8019]
[1732445800889,0.75934488,3371.9,3371.4,3.0]
[1732445801255,0.75934488,3371.9,3370.7,0.8019]
[1732445801457,0.75934488,3371.9,3371.4,3.0]
[1732445801659,0.04940444,3371.9,3371.4,3.0]
[1732445801977,6.5,3372.5,3371.8,3.0]
[1732445802178,0.04940444,3371.8,3370.9,0.7851]
[1732445802491,0.65,3372.4,3370.9,0.7851]
[1732445802693,0.1487114,3372.8,3371.8,3.0]
[1732445803151,0.1487114,3372.8,3371.0,0.02966019]
[1732445803356,0.55,3372.7,3371.8,3.0]
[1732445803591,1.21487114,3372.7,3371.0,0.02966019]
[1732445803889,1.21487114,3372.7,3371.8,3.0]
[1732445804676,1.21487114,3372.7,3371.6,0.7805]
[1732445804872,0.78635825,3372.6,3371.6,1.13305956]
[1732445805207,0.78635825,3372.6,3371.8,3.0]
[1732445805394,0.78635825,3372.6,3371.2,0.64835956]
[1732445805566,0.78635825,3372.6,3371.2,0.48682489]
[1732445805771,0.78635825,3372.6,3371.8,3.0]
[1732445806078,0.78635825,3372.6,3371.9,0.2958]
[1732445806674,0.55,3372.7,3371.9,0.2958]
[1732445808759,0.55,3372.7,3372.0,0.2958]
[1732445809794,0.55,3372.7,3371.8,3.2958]
[1732445810100,0.55,3372.7,3371.8,0.2958]
[1732445810399,0.55,3372.7,3372.0,0.2958]
[1732445810700,0.55,3372.5,3372.0,0.2958]
[1732445811693,0.55,3372.7,3372.0,0.2958]
[1732445811895,0.55,3372.5,3372.0,0.2958]
[1732445812057,0.55,3372.5,3371.9,3.0]
[1732445812659,0.55,3372.5,3371.0,0.2958]
[1732445813474,0.55,3372.1,3371.0,0.2958]
[1732445814703,6.5,3372.6,3371.0,0.2958]
[1732445814891,1.28685825,3372.5,3371.0,0.2958]
[1732445815412,1.28685825,3372.5,3371.0,0.3254611]
[1732445815578,0.55,3372.7,3371.0,0.3254611]
[1732445815767,0.55,3372.7,3371.0,0.2958]
[1732445816500,0.55,3372.5,3371.0,0.2958]
[1732445816869,0.55,3372.7,3371.0,0.2958]
[1732445817211,0.55,3372.5,3371.0,0.2958]
[1732445817911,0.04868076,3372.4,3371.0,0.2958]
[1732445818081,0.04868076,3372.4,3371.1,0.02965995]
[1732445818403,0.04868076,3372.4,3371.3,0.2958]
[1732445821013,0.55,3372.3,3371.0,0.2958]
[1732445821164,0.55,3372.3,3371.0,0.45079317]
[1732445821365,0.04870349,3372.2,3371.0,0.45079317]
[1732445822117,0.55,3372.1,3370.6,0.2958]
[1732445822495,0.55,3371.9,3370.6,0.2958]
[1732445823014,0.04860119,3371.8,3370.6,0.2958]
[1732445823168,0.55,3371.7,3370.7,0.2958]
[1732445823364,0.55,3371.7,3369.9,0.2958]
[1732445823678,6.5,3372.1,3369.9,0.2958]
[1732445823679,0.55,3371.5,3369.9,0.2958]
[1732445824310,0.55,3371.3,3369.7,0.2958]
[1732445824514,0.55,3371.0,3369.7,0.2958]
[1732445824805,0.705,3370.9,3369.7,0.2958]
[1732445825106,0.705,3370.9,3369.6,0.02967394]
[1732445825107,0.0482459,3370.9,3369.8,0.2958]
[1732445825310,0.55,3370.8,3369.8,0.2958]
[1732445825515,1.25982459,3370.8,3369.8,0.2958]
[1732445825873,0.04818619,3370.7,3369.8,0.2958]
[1732445826399,0.04818619,3370.7,3369.6,0.2958]
[1732445827773,0.55,3370.6,3369.6,0.2958]
[1732445828411,0.04818619,3370.5,3369.6,0.45175467]
[1732445828768,0.55,3370.4,3369.0,1.184062]
[1732445828970,0.55,3370.4,3369.1,0.35255956]
[1732445829201,0.0481606,3370.3,3370.1,3.0]
[1732445829374,0.0481606,3370.3,3369.1,0.38223508]
[1732445829582,0.55,3370.4,3369.1,0.35255956]
[1732445829906,0.0481606,3370.3,3369.1,0.64835956]
[1732445830105,6.5,3371.1,3369.3,0.7822]
[1732445830404,1.2481606,3371.0,3369.3,1.078]
[1732445830808,1.2481606,3371.0,3369.3,0.2958]
[1732445831315,0.5381606,3371.0,3369.3,0.2958]
[1732445831517,0.70381606,3370.9,3369.3,0.45502761]
[1732445831696,0.70381606,3370.9,3369.1,0.2958]
[1732445832069,0.0481606,3370.8,3370.1,3.0]
[1732445832273,0.0481606,3370.8,3369.1,0.2958]
[1732445832504,0.72519767,3370.7,3369.1,0.45206]
[1732445832816,6.5,3370.8,3369.1,0.45206]
[1732445833023,0.0481606,3370.6,3369.1,0.2958]
[1732445833309,6.5,3370.8,3369.1,0.2958]
[1732445833310,0.0481606,3370.5,3370.1,3.0]
[1732445833471,0.70981606,3370.5,3369.1,0.2958]
[1732445833673,7.05,3370.7,3370.1,3.0]
[1732445833674,0.0481606,3370.4,3370.1,3.0]
[1732445833992,7.05,3370.7,3369.1,0.2958]
[1732445834167,0.0481606,3370.3,3369.1,0.2958]
[1732445834372,0.55,3370.5,3369.1,0.2958]
[1732445834590,0.04760056,3370.2,3369.1,0.2958]
[1732445834796,0.55,3370.5,3369.1,0.2958]
[1732445834984,0.04760056,3370.1,3369.1,0.2958]
[1732445835199,1.3255,3370.5,3369.1,0.2958]
[1732445835385,0.04760056,3370.0,3369.1,0.2958]
[1732445835587,0.55,3370.5,3369.1,0.2958]
[1732445835913,0.55,3370.3,3369.1,0.2958]
[1732445836113,0.04760056,3370.4,3369.1,0.2958]
[1732445836469,0.55,3370.8,3369.1,0.2958]
[1732445836784,0.55,3370.6,3369.1,0.2958]
[1732445837376,0.55,3370.4,3369.1,0.2958]
[1732445837628,0.04760056,3370.5,3369.1,0.2958]
[1732445837805,0.55,3370.9,3369.1,0.2958]
[1732445837976,0.04760056,3370.4,3369.1,0.2958]
[1732445838317,0.04760056,3370.3,3369.1,0.2958]
[1732445838614,0.55,3370.7,3369.1,0.2958]
[1732445838917,0.55,3370.8,3369.1,0.2958]
[1732445839077,0.55,3370.6,3369.1,0.2958]
[1732445839715,0.04760056,3370.5,3369.1,0.2958]
[1732445840095,0.04760056,3370.5,3369.1,0.45206]
[1732445840322,0.55,3370.4,3369.7,3.0]
[1732445840529,0.55,3370.2,3369.7,3.0]
[1732445840734,0.55,3370.2,3368.7,0.2958]
[1732445840889,0.55,3370.0,3368.6,0.47904998]
[1732445841230,0.55,3370.0,3368.2,0.7509]
[1732445841434,0.55,3369.8,3368.2,0.7509]
[1732445841733,0.70974356,3369.7,3368.2,1.0467]
[1732445841905,0.75717915,3369.7,3368.2,1.0467]
[1732445842088,0.75717915,3369.7,3368.3,0.02968459]
[1732445842724,0.55,3370.3,3368.2,1.55490195]
[1732445842925,0.55,3370.1,3368.2,1.55490195]
[1732445843125,0.55,3370.1,3368.3,0.4512902]
[1732445843610,0.55,3369.9,3368.4,0.02968307]
[1732445843990,0.04733602,3369.8,3368.3,0.4512902]
[1732445844187,0.04733602,3369.8,3368.4,0.46683922]
[1732445844388,0.55,3369.7,3368.4,0.2958]
[1732445844828,0.55,3369.5,3368.4,0.2958]
[1732445845333,0.55,3369.3,3368.3,0.2958]
[1732445845693,0.55,3369.5,3368.3,0.2958]
[1732445846039,0.55,3369.3,3368.3,0.2958]
[1732445846332,0.55,3369.4,3367.9,0.32548802]
[1732445846542,6.5,3369.8,3368.1,0.2958]
[1732445846543,0.04734455,3369.2,3368.1,0.2958]
[1732445846692,0.55,3369.7,3368.1,0.2958]
[1732445846893,0.55,3369.5,3369.0,3.0]
[1732445847125,0.705,3369.6,3368.1,0.4971888]
[1732445847294,0.55,3369.4,3369.0,3.0]
[1732445847500,0.55,3369.4,3369.1,3.0]
[1732445847838,0.04734455,3369.3,3368.3,0.32548402]
[1732445848001,0.04734455,3369.3,3368.3,0.2958]
[1732445848202,0.55,3369.4,3369.2,3.0]
[1732445848602,0.04707143,3369.3,3369.2,3.0]
[1732445848805,0.55,3369.4,3369.2,3.0]
[1732445849009,0.55,3369.4,3368.3,0.32548312]
[1732445849215,0.55,3369.4,3368.3,0.78995176]
[1732445849415,0.55,3369.4,3368.5,0.2958]
[1732445849711,0.04707143,3369.3,3368.6,0.7509]
[1732445849924,6.5,3370.1,3368.6,1.42894517]
[1732445850148,0.04708281,3370.0,3369.9,3.0]
[1732445850508,6.5,3371.0,3369.2,0.2958]
[1732445850744,0.69708281,3370.9,3369.9,3.0]
[1732445851124,0.69708281,3370.9,3370.1,3.0]
[1732445851435,6.5,3370.7,3370.1,3.0]
[1732445851637,0.55,3370.6,3370.1,3.0]
[1732445851833,0.55,3370.6,3369.3,0.2958]
[1732445852145,0.55,3370.4,3369.3,0.2958]
[1732445852444,0.55,3370.4,3370.1,3.0]
[1732445852628,0.55,3370.4,3369.2,0.2958]
[1732445852942,0.55,3370.2,3370.1,3.0]
[1732445853447,0.55,3370.2,3369.2,0.2958]
[1732445853632,0.55,3370.2,3370.1,3.0]
[1732445853633,0.59708281,3370.2,3370.1,3.0]
[1732445853809,0.59708281,3370.2,3368.8,0.2958]
[1732445854012,0.59708281,3370.2,3368.4,1.0467]
[1732445855227,0.55,3370.0,3368.4,1.0467]
[1732445855415,7.05,3370.0,3368.4,1.0467]
[1732445855830,0.55,3369.8,3368.4,1.0467]
[1732445856012,0.55,3369.8,3369.5,3.0]
[1732445856214,0.55,3369.9,3369.5,3.0]
[1732445856544,0.55,3369.7,3368.5,0.2958]
[1732445856840,0.55,3369.7,3369.5,3.0]
[1732445857047,0.55,3369.7,3368.5,0.3254817]
[1732445857246,0.04708281,3369.6,3368.5,0.678045]
[1732445857747,6.5,3370.5,3369.5,3.0]
[1732445858050,0.65,3370.4,3369.8,3.0]
[1732445858343,0.04708281,3370.4,3369.9,3.0]
[1732445858853,6.5,3371.0,3369.9,3.0]
[1732445859148,0.65,3370.9,3369.9,3.0]
[1732445859347,0.55,3370.8,3369.2,0.2958]
[1732445859551,0.55,3370.5,3369.2,0.2958]
[1732445859752,0.55,3370.5,3369.9,3.0]
[1732445860046,0.55,3370.3,3369.9,3.0]
[1732445860413,0.55,3370.5,3369.9,3.0]
[1732445860613,0.04708281,3370.2,3369.2,0.78580165]
[1732445860812,0.55,3370.5,3369.9,3.0]
[1732445861215,0.04708281,3370.4,3369.4,0.2958]
[1732445861410,0.04708281,3370.4,3370.2,3.0]
[1732445861633,6.5,3371.4,3369.7,1.0992]
[1732445861835,6.5,3371.4,3370.5,3.0]
[1732445861836,0.65,3371.3,3370.5,3.0]
[1732445862021,0.69708281,3371.3,3369.7,1.0992]
[1732445862222,0.71970828,3371.2,3370.5,3.0]
[1732445862646,6.5,3371.6,3369.7,1.12887054]
[1732445862848,0.55,3371.0,3370.5,3.0]
[1732445863250,0.04708281,3370.9,3370.5,3.0]
[1732445863546,0.04708281,3370.9,3370.3,0.8034]
[1732445864023,0.55,3371.0,3370.5,3.0]
[1732445864238,0.55,3371.0,3370.0,1.0992]
[1732445864450,0.04741278,3370.9,3370.5,3.0]
[1732445864759,0.55,3371.0,3370.5,3.0]
[1732445865111,0.55,3370.8,3370.5,3.0]
[1732445865541,6.5,3371.6,3370.5,3.0]
[1732445865740,6.5,3371.6,3370.8,3.0]
[1732445865941,0.04741278,3371.5,3370.9,3.0]
[1732445866154,0.69741278,3371.5,3370.1,0.2958]
[1732445866359,0.71974128,3371.4,3370.9,3.0]
[1732445866828,6.5,3371.8,3370.2,0.02966828]
[1732445867032,0.04741278,3371.3,3370.9,3.0]
[1732445867243,0.55,3371.7,3370.1,0.32546826]
[1732445867548,0.55,3371.1,3370.9,3.0]
[1732445867747,0.55,3371.1,3370.1,0.2958]
[1732445868153,0.55,3371.1,3370.9,3.0]
[1732445868518,0.04741278,3371.0,3370.9,3.0]
[1732445868824,0.04741278,3371.0,3370.1,0.32546824]
[1732445869036,0.04741278,3371.0,3370.1,0.32547082]
[1732445869253,0.04741278,3371.0,3370.1,0.2958]
[1732445869426,0.55,3371.6,3371.1,3.0]
[1732445869636,0.04741278,3370.9,3370.1,0.32546883]
[1732445869962,0.55,3371.6,3371.1,3.0]
[1732445870456,0.04741278,3371.5,3370.8,0.2958]
[1732445870853,6.5,3372.2,3371.1,3.0]
[1732445871150,0.65,3372.1,3371.1,3.0]
[1732445871321,0.69741278,3372.1,3370.2,0.2958]
[1732445871517,0.55,3371.5,3370.2,0.2958]
[1732445871754,0.55,3371.5,3371.1,3.0]
[1732445871956,0.55,3371.5,3369.2,0.38222761]
[1732445871957,0.55,3371.3,3369.7,0.8034]
[1732445872139,0.55,3371.3,3368.9,0.26432885]
[1732445872140,0.55,3371.3,3369.4,0.8034]
[1732445872456,0.55,3371.1,3369.4,0.8034]
[1732445872751,0.55,3371.4,3369.4,0.8034]
[1732445872952,0.55,3370.9,3369.4,0.8034]
[1732445873154,0.55,3370.9,3369.5,0.2958]
[1732445873356,0.55,3370.7,3369.5,0.2958]
[1732445873661,0.55,3370.7,3369.5,0.45314634]
[1732445873961,0.55,3370.5,3370.4,3.0]
[1732445874163,0.04782238,3370.6,3370.4,3.0]
[1732445874320,0.55,3371.0,3369.5,0.45314634]
[1732445874619,0.55,3370.8,3370.4,3.0]
[1732445874820,0.55,3370.8,3369.7,0.2958]
[1732445875122,0.55,3370.6,3369.7,0.2958]
[1732445875315,0.55,3370.6,3370.4,3.0]
[1732445875860,6.5,3371.4,3369.8,0.2958]
[1732445876056,0.65,3371.3,3369.8,0.2958]
[1732445876253,0.69782238,3371.3,3369.8,0.2958]
[1732445876559,0.69782238,3371.3,3370.5,3.0]
[1732445877263,0.55,3371.2,3370.4,3.0]
[1732445877420,7.05,3371.0,3369.9,0.2958]
[1732445877966,0.55,3370.8,3370.4,3.0]
[1732445878344,0.55,3370.9,3370.4,3.0]
[1732445878544,0.59778828,3370.7,3369.5,0.2958]
[1732445878791,0.59778828,3370.7,3370.2,3.0]
[1732445878938,0.59778828,3370.7,3369.5,0.2958]
[1732445879267,0.59778828,3370.7,3370.2,3.0]
[1732445879577,7.09778828,3370.7,3370.2,3.0]
[1732445879785,0.55,3370.5,3370.2,3.0]
[1732445880278,0.04763472,3370.4,3369.5,0.2958]
[1732445880477,0.04763472,3370.4,3370.2,3.0]
[1732445880681,0.04763472,3370.4,3369.5,0.67803314]
[1732445880976,0.04763472,3370.4,3369.7,0.2958]
[1732445881359,0.04763472,3370.4,3369.7,0.32547466]
[1732445881555,6.5,3371.5,3371.0,3.0]
[1732445881761,6.5,3371.5,3369.9,0.2958]
[1732445881762,0.65,3371.4,3369.9,0.2958]
[1732445881984,0.65,3371.4,3370.0,0.02966963]
[1732445882578,0.3487114,3372.8,3370.0,0.02966963]
[1732445882579,6.5,3371.9,3371.1,3.0]
[1732445883151,6.5,3371.9,3370.5,0.2958]
[1732445883376,6.5,3372.1,3371.1,3.0]
[1732445883679,0.65,3372.0,3370.5,0.2958]
[1732445883892,0.55,3371.9,3371.1,3.0]
[1732445884182,0.55,3371.9,3370.5,0.2958]
[1732445884384,0.55,3371.7,3370.5,0.2958]
[1732445884551,0.55,3371.7,3371.1,3.0]
[1732445884879,0.55,3371.7,3370.5,0.32546558]
[1732445885086,0.55,3371.7,3371.1,3.0]
[1732445885300,0.55,3371.7,3370.5,0.32546556]
[1732445885457,0.55,3371.7,3371.1,3.0]
[1732445885656,0.55,3371.7,3370.5,0.32546556]
[1732445885902,0.55,3371.7,3371.1,3.0]
[1732445886085,0.55,3371.7,3370.5,0.2958]
[1732445886579,0.55,3371.7,3371.1,3.0]
[1732445886755,0.55,3371.7,3371.2,3.0]
[1732445887560,0.55,3371.7,3371.3,3.0]
[1732445888492,0.55,3371.7,3370.7,0.2958]
[1732445888693,0.55,3371.7,3370.5,0.47597625]
[1732445888694,0.55,3372.0,3371.3,3.0]
[1732445888896,0.705,3371.9,3371.3,3.0]
[1732445889108,0.55,3371.8,3371.3,3.0]
[1732445889253,0.59604689,3371.8,3371.3,3.0]
[1732445889461,0.04604689,3371.8,3371.6,3.0]
[1732445889761,6.5,3372.5,3371.6,3.0]
[1732445889961,0.04629139,3371.7,3371.1,1.0678]
[1732445890184,0.65,3372.4,3371.1,1.0678]
[1732445890392,0.65,3372.4,3371.6,3.0]
[1732445890563,0.04629139,3372.3,3371.6,3.0]
[1732445890880,6.5,3372.6,3371.6,3.0]
[1732445891094,6.5,3372.6,3371.1,1.0678]
[1732445891287,0.71116253,3372.5,3371.6,3.0]
[1732445891476,0.71116253,3372.5,3371.1,1.0678]
[1732445891795,0.55,3372.4,3371.6,3.0]
[1732445892094,0.55,3372.4,3371.9,3.0]
[1732445892308,0.04629139,3372.3,3371.9,3.0]
[1732445892454,0.55,3372.2,3371.9,3.0]
[1732445892667,0.04629139,3372.1,3371.9,3.0]
[1732445893468,0.04629139,3372.1,3371.1,1.56171073]
[1732445893668,0.04629139,3372.1,3371.9,3.0]
[1732445894206,0.04629139,3372.1,3371.1,1.56171073]
[1732445894500,0.04629139,3372.1,3371.9,3.0]
[1732445894701,0.04629139,3372.1,3370.5,0.02965929]
[1732445894702,0.55,3372.0,3370.5,0.2958]
[1732445895210,0.55,3371.8,3371.6,3.0]
[1732445895798,0.59629139,3371.7,3371.6,3.0]
[1732445896363,0.55,3371.6,3370.9,0.2958]
[1732445897210,0.55,3371.4,3370.7,0.2958]
[1732445897912,0.04629139,3371.3,3370.7,0.2958]
[1732445898610,0.55,3371.2,3370.7,0.2958]
[1732445899214,0.55,3371.0,3370.1,0.2958]
[1732445899582,0.55,3370.8,3370.1,0.2958]
[1732445900000,0.04649613,3370.7,3370.1,0.2958]
[1732445900215,0.55,3370.6,3369.6,0.2958]
[1732445900595,0.55,3370.9,3369.6,0.2958]
[1732445900791,0.04649613,3370.5,3369.6,0.2958]
[1732445901101,1.2,3370.9,3370.4,3.0]
[1732445901296,1.2,3370.9,3369.7,0.64835956]
[1732445901626,0.55,3370.7,3369.7,0.64835956]
[1732445901830,0.55,3371.0,3369.7,0.64835956]
[1732445901988,0.55,3371.0,3370.4,3.0]
[1732445902188,0.55,3371.0,3369.8,0.38223204]
[1732445902385,0.55,3370.8,3369.6,0.3254739]
[1732445902589,0.55,3370.8,3370.4,3.0]
[1732445902989,0.55,3370.8,3369.6,0.67803346]
[1732445903229,0.55,3370.8,3369.7,0.64835956]
[1732445904729,0.55,3370.8,3369.7,0.67803202]
[1732445904919,0.55,3370.8,3370.5,3.0]
[1732445905226,0.55,3370.8,3369.6,0.3254713]
[1732445905528,0.55,3370.8,3369.7,0.02967347]
[1732445905836,6.5,3371.3,3369.7,0.02967347]
[1732445905837,0.55,3371.2,3370.5,3.0]
[1732445906331,0.04633976,3371.1,3369.8,1.10066989]
[1732445906533,0.75133976,3371.1,3370.7,3.0]
[1732445906733,0.04633976,3371.1,3370.7,3.0]
[1732445906889,6.5,3371.7,3370.7,3.0]
[1732445907224,0.04633976,3371.6,3370.9,3.0]
[1732445907398,0.04633976,3371.6,3370.0,0.32546804]
[1732445907399,0.69633976,3371.6,3370.0,0.32546804]
[1732445907604,0.55,3371.5,3370.9,3.0]
[1732445907807,1.26963398,3371.5,3370.9,3.0]
[1732445908009,0.55,3371.3,3370.9,3.0]
[1732445908210,0.55,3371.3,3370.1,0.02966833]
[1732445908413,6.5,3371.7,3370.2,0.7752]
[1732445908633,0.04638525,3371.2,3371.0,3.0]
[1732445908855,7.15,3371.7,3370.2,0.7752]
[1732445909028,0.04639378,3371.1,3370.2,0.7752]
[1732445909225,0.04639378,3371.1,3371.0,3.0]
[1732445909410,0.04639378,3371.1,3370.2,0.7752]
[1732445909411,0.04639378,3371.0,3370.2,0.80486618]
[1732445909613,0.55,3371.9,3370.2,0.80486618]
[1732445909946,0.04639378,3371.8,3370.2,1.10066618]
[1732445910111,0.55,3371.7,3370.2,1.10066618]
[1732445910497,0.04639378,3371.6,3371.5,3.0]
[1732445910700,6.5,3372.4,3370.5,0.02966151]
[1732445910903,0.69639378,3372.3,3370.9,0.7752]
[1732445911120,0.69639378,3372.3,3371.6,3.0]
[1732445911321,0.69639378,3372.3,3371.0,0.2958]
[1732445911534,0.69639378,3372.3,3371.6,3.0]
[1732445911740,0.55,3372.2,3371.6,3.0]
[1732445912055,0.55,3372.4,3371.0,0.2958]
[1732445912343,0.55,3372.2,3371.0,0.2958]
[1732445912548,0.04639378,3372.1,3371.6,3.0]
[1732445912699,0.55,3372.0,3371.6,3.0]
[1732445912901,0.04648192,3371.9,3371.0,0.2958]
[1732445913134,0.55,3372.2,3371.6,3.0]
[1732445913320,0.55,3372.0,3371.6,3.0]
[1732445913525,2.96227,3375.8,3371.6,3.0]
[1732445913526,6.5,3372.6,3371.6,3.0]
[1732445913843,0.04648192,3372.5,3372.1,3.0]
[1732445914047,0.04648192,3372.5,3371.7,0.2958]
[1732445914228,0.04648192,3372.5,3370.9,0.7752]
[1732445914546,0.65464819,3372.4,3371.7,3.0]
[1732445914704,0.04668091,3372.3,3370.4,0.7501]
[1732445914911,0.55,3372.2,3371.5,3.0]
[1732445915104,0.04522797,3372.1,3371.5,3.0]
[1732445915320,7.05,3372.0,3371.5,3.0]
[1732445915539,0.75471092,3371.9,3370.5,0.2958]
[1732445915745,0.55,3371.8,3370.5,0.2958]
[1732445916056,0.04518527,3371.7,3370.5,0.2958]
[1732445916552,0.55,3371.6,3370.5,0.2958]
[1732445916757,0.73547081,3371.6,3370.5,0.48618198]
[1732445916943,0.04518527,3371.5,3370.5,0.48618198]
[1732445921127,0.04518527,3371.5,3371.2,3.0]
[1732445921326,0.04518527,3371.5,3371.3,0.2958]
[1732445922258,0.04518527,3371.5,3371.3,3.2958]
[1732445922465,0.04518527,3371.5,3370.6,0.2958]
[1732445922660,0.04518527,3371.5,3371.3,3.0]
[1732445922868,0.04518527,3371.5,3370.6,0.2958]
[1732445923366,0.55,3371.4,3371.3,3.0]
[1732445923661,0.55,3371.4,3371.2,3.0]
[1732445923859,0.59518527,3371.4,3370.2,0.81705667]
[1732445924039,0.59518527,3371.4,3370.2,0.2958]
[1732445924628,0.55,3371.2,3370.2,0.2958]
[1732445925028,0.04510271,3371.1,3370.2,0.2958]
[1732445928065,0.04510271,3371.1,3370.7,3.2958]
[1732445928264,0.55,3371.0,3370.7,3.0]
[1732445928775,0.04510271,3370.9,3370.7,3.0]
[1732445929252,0.04510271,3370.9,3369.9,0.2958]
[1732445929461,0.04510271,3370.9,3370.7,3.0]
[1732445929636,0.04510271,3370.9,3369.9,0.2958]
[1732445929831,0.04510271,3370.9,3370.7,3.0]
[1732445930382,0.04510271,3370.9,3369.9,0.32547025]
[1732445930533,0.55,3371.0,3370.8,3.0]
[1732445930728,0.55,3371.0,3370.2,0.02966837]
[1732445930729,0.04486354,3370.9,3370.2,0.02966837]
[1732445930955,0.55,3371.0,3370.1,0.2958]
[1732445931237,0.04486354,3370.9,3370.8,3.0]
[1732445931637,6.5,3371.7,3371.0,3.0]
[1732445931863,0.65,3371.6,3370.3,0.2958]
[1732445932074,0.69475818,3371.6,3371.0,0.2958]
[1732445932236,0.69475818,3371.6,3371.0,3.2958]